Cogmind - Beta 13 @@@ ROGUE MODE // 2024.06.03 @ 19:59:02 Player: Kat Result: Self-destructed Performance ------------- Evolutions (1) 500 Regions Visited (2) 400 Robots Destroyed (35) 175 Value Destroyed (727) 727 Prototype IDs (2) 40 Alien Tech Used (0) 0 Bonus (11) 11 TOTAL SCORE: 1853 Bonus ------- High Alert Combat Kills 11 Cogmind --------- Core Integrity 336/400 Matter 288/300 Energy 124/125 System Corruption 0% Temperature Warm (109) Movement Hovering (52) Location -9/Materials Parts ------- > --- POWER (1) -------- Light Ion Engine > --- PROPULSION (4) --- Hover Unit Improved Hover Unit Improved Hover Unit > --- UTILITY (2) ------ Medium Storage Unit > --- WEAPON (2) ------- Advanced Beam Cannon Katana > --- INVENTORY (10) --- Aluminum Leg Aluminum Leg Improved Targeting Computer Hacking Suite Light Assault Rifle Light Assault Rifle Light Cannon Light Cannon Light Cannon Datajack Peak State ------------ > --- POWER ------------ Light Ion Engine > --- PROPULSION ------- Hover Unit Improved Hover Unit Improved Hover Unit Improved Hover Unit > --- UTILITY ---------- Medium Storage Unit Light Armor Plating > --- WEAPON ----------- Advanced Beam Cannon Katana > --- INVENTORY -------- Aluminum Leg Aluminum Leg Improved Targeting Computer Hacking Suite Light Assault Rifle Light Assault Rifle Light Cannon Light Cannon Light Cannon Datajack [Rating: 17] Favorites ----------- Power Light Ion Engine Engine Light Ion Engine Propulsion Aluminum Leg Leg Aluminum Leg Hover Unit Improved Hover Unit Utility Small Storage Unit Device Sensor Array Storage Small Storage Unit Protection Light Armor Plating Weapon Light Cannon Energy Gun Improved EM Shotgun Energy Cannon Advanced Beam Cannon Ballistic Gun Assault Rifle Ballistic Cannon Light Cannon Slashing Weapon Katana Build | -11 -10 -9 ------- Run | Yrd Mat Mat Slots Evolved 2 | . . 2 Power . | . . . Propulsion 2 | . . 2 Utility . | . . . Weapon . | . . . Parts Attached 25 | 6 9 10 Power 2 | 1 1 . Engine 2 | 1 1 . Core . | . . . Reactor . | . . . Propulsion 9 | 2 2 5 Treads . | . . . Leg 4 | 2 2 . Wheel . | . . . Hover 5 | . . 5 Flight . | . . . Utility 4 | 1 2 1 Device 1 | . 1 . Storage 2 | 1 1 . Processor . | . . . Hackware . | . . . Protection 1 | . . 1 Artifact . | . . . Weapon 10 | 2 4 4 Energy Gun 1 | . . 1 Energy Cannon 1 | . . 1 Ballistic Gun 3 | 2 1 . Ballistic Cannon 4 | . 3 1 Launcher . | . . . Special Weapon . | . . . Impact Weapon . | . . . Slashing Weapon 1 | . . 1 Piercing Weapon . | . . . Special Melee Weapon . | . . . Unidentified Prototypes 2 | . . 2 Parts Lost 5 | . 2 3 Power . | . . . Propulsion 2 | . . 2 Utility 2 | . 1 1 Weapon 1 | . 1 . Highest Loss Streak 1 | . 1 1 To Critical Strikes . | . . . Average Slot Usage (%) 94 | . 94 94 Engine 13 | . 14 11 Leg 22 | . 28 . Hover 8 | . . 40 Device 1 | . 1 . Storage 19 | . 21 11 Protection 1 | . . 9 Ballistic Gun 6 | . 7 . Ballistic Cannon 18 | . 19 15 Naked Turns . | . . . Heaviest Build 24 | 10 24 24 Greatest Support 28 | 20 20 28 Greatest Overweight (x) 1 | 1 1 1 Average Overweight (x) . | . . . Largest Inventory Capacity 10 | 8 10 10 Average Capacity 9 | 6 9 10 Most Carried 10 | 2 10 10 Average Carried 7 | 1 7 7 Final Capacity 10 | 8 10 10 Final Carried 10 | 2 8 10 Class Distribution -------------------- 100% | Mutant Dominant Class ---------------- Mutant | -10/Materials Mutant | -9/Materials Resources | -11 -10 -9 ----------- Run | Yrd Mat Mat Matter Collected 914 | 234 314 366 Remotely . | . . . Salvage Created 984 | . 339 645 Parts 78 | . 34 44 Haulers Intercepted 4 | . 2 2 Recyclers Shooed 1 | . 1 . Parts Field Recycled . | . . . Retrieved Matter . | . . . Parts Self-Destructed . | . . . Prevented . | . . . Kills | -11 -10 -9 ------- Run | Yrd Mat Mat Combat Hostiles Destroyed 23 | . 12 11 Melee 1 | . . 1 Guns 4 | . 4 . Cannons 18 | . 8 10 Classes Destroyed 10 | . 7 3 Worker 2 | . 1 1 Builder 1 | . 1 . Hauler 4 | . 2 2 Recycler 1 | . . 1 Operator 2 | . 1 1 Watcher 2 | . 2 . Swarmer 9 | . 9 . Grunt 10 | . 3 7 Duelist 1 | . . 1 Sentry 3 | . . 3 Best Kill Streak 12 | . 4 12 Combat Bots Only 5 | . 4 5 Max Kills in Single Turn 2 | . 2 2 Gunslinging . | . . . Exploded . | . . . Melee 1 | . . 1 Uniques/NPCs Destroyed . | . . . Combat | -11 -10 -9 -------- Run | Yrd Mat Mat Hostile Shots Fired 92 | . 58 34 Missed 22 | . 13 9 Damage Taken 738 | . 375 363 Core 97 | . 33 64 Absorbed by Shields . | . . . Regen/Repaired (Parts) 103 | . 103 . Core Remaining (%) 93 | 100 86 . Volleys Fired 81 | . 57 24 Largest 2 | . 2 2 Hottest 70 | . 70 70 Shots Fired 146 | . 106 40 Gun 39 | . 39 . Cannon 107 | . 67 40 Launcher . | . . . Special . | . . . Kinetic 138 | . 106 32 Thermal 8 | . . 8 Explosive . | . . . Electromagnetic . | . . . Robot Hit Streak 5 | . 5 5 Robot Miss Streak 4 | . 4 3 Penetration Max . | . . . Secondary Targets . | . . . Shots Hit Robots 82 | . 52 30 Core Hits 39 | . 21 18 Critical Kills . | . . . Critical Parts Destroyed . | . . . Critical Strikes 1 | . . 1 Sever 1 | . . 1 Melee Attacks 8 | . . 8 Impact . | . . . Slashing 8 | . . 8 Piercing . | . . . Sneak Attacks 1 | . . 1 Combat Hostiles . | . . . Follow-up Attacks . | . . . Damage Inflicted 1599 | . 855 744 Guns 294 | . 294 . Cannons 1003 | . 547 456 Explosions . | . . . Melee 288 | . . 288 Ramming 14 | . 14 . Kinetic 1154 | . 841 313 Thermal 143 | . . 143 Explosive . | . . . Electromagnetic . | . . . Impact . | . . . Slashing 288 | . . 288 Piercing . | . . . Highest Corruption 2 | . 2 . Average Corruption 2 | . 2 . Corruption Purged . | . . . Corruption Blocked . | . . . Effects 2 | . 2 . Message Errors 1 | . 1 . Parts Fused 1 | . 1 . Overload Shots . | . . . Overflow Damage 10 | . 10 . Projectiles 10 | . 10 . Explosions . | . . . Melee . | . . . Knockbacks 12 | . 8 4 Impact . | . . . Kinetic 12 | . 8 4 Secondary . | . . . Self-Inflicted Damage . | . . . Shots . | . . . Rammed . | . . . Targets Rammed 2 | . 2 . Kicked 2 | . 2 . Crushed . | . . . Highest Temperature 179 | . 33 179 Average Temperature 33 | . 11 41 Received Heat Transfer 126 | . 18 108 Siege Activations . | . . . Robots Corrupted . | . . . Combat Hostiles . | . . . Parts Fried . | . . . Impact Corruptions . | . . . Robots Melted . | . . . Combat Hostiles . | . . . Parts Melted . | . . . Heat Transferred 259 | . . 259 Parts Sabotaged . | . . . Parts Stolen . | . . . Parts Stripped . | . . . Power Chain Reactions . | . . . Alert | -11 -10 -9 ------- Run | Yrd Mat Mat Peak Influence 428 | . 211 428 Initial 36 | . . 36 Average 130 | . 121 187 Maximum Alert Level 2 | . 1 2 Low Security (%) 77 | 100 82 55 Level 1 21 | . 17 41 Level 2 . | . . 3 Level 3 . | . . . Level 4 . | . . . Level 5 . | . . . High Security . | . . . Max Security . | . . . Squads Dispatched 6 | . 3 3 Investigation 4 | . 2 2 Extermination . | . . . Reinforcement 2 | . 1 1 Assault . | . . . Garrison . | . . . Intercept . | . . . Searches Triggered . | . . . Construction Impeded . | . . . Haulers Reinforced . | . . . Active Scanning Responses . | . . . Cargo Convoy Interrupts . | . . . Stealth | -11 -10 -9 --------- Run | Yrd Mat Mat Distress Signals 2 | . 1 1 Communications Jammed . | . . . Distress Signals . | . . . Times Spotted 37 | . 22 15 Peak Tracking Total 4 | . 4 3 Tactical Retreats 1 | . . 1 Traps | -11 -10 -9 ------- Run | Yrd Mat Mat Traps Triggered 1 | . 1 . Indirectly . | . . . Trap Hack Attempts . | . . . Triggered . | . . . Disarmed . | . . . Reprogrammed . | . . . Reused . | . . . Traps Extracted . | . . . Installed . | . . . Triggered . | . . . Machines | -11 -10 -9 ---------- Run | Yrd Mat Mat Machines Disabled 3 | . 2 1 Max in Single Turn 1 | . 1 1 Machines Repaired . | . . . Machines Dismantled . | . . . Machines Sabotaged . | . . . Overloaded Fab Kills . | . . . Hacking | -11 -10 -9 --------- Run | Yrd Mat Mat Machines Accessed 11 | . 9 2 Terminals 7 | . 6 1 Fabricators . | . . . Repair Stations 1 | . 1 . Recycling Units 3 | . 2 1 Scanalyzers . | . . . Garrison Access . | . . . Total Hacks 28 | . 19 9 Successful 13 | . 10 3 Failed 15 | . 9 6 Catastrophic 2 | . 1 1 Database Lockouts . | . . . Manual 17 | . 14 3 Terminals 16 | . 13 3 Fabricators . | . . . Repair Stations 3 | . 3 . Recycling Units 9 | . 3 6 Scanalyzers . | . . . Garrison Access . | . . . Terminal Hacks 3 | . 3 . Branch Access Points 1 | . 1 . Locate Traps 2 | . 2 . Fabricator Hacks . | . . . Repair Station Hacks 2 | . 2 . Scan Component 1 | . 1 . Repair 1 | . 1 . Recycling Unit Hacks 2 | . . 2 Report Inventory 1 | . . 1 Retrieve Components 1 | . . 1 Scanalyzer . | . . . Garrison Access Hacks . | . . . Unauthorized Hacks 6 | . 5 1 Terminals 4 | . 3 1 Assimilate 2 | . 2 . Operators 2 | . 1 1 Fabricators . | . . . Repair Stations . | . . . Recycling Units 2 | . 2 . Tunnel 2 | . 2 . Scanalyzers . | . . . Garrison Access . | . . . Data Cores Recovered 1 | . 1 . Used . | . . . Hacking Detections 8 | . 6 2 Full Trace Events 3 | . 1 2 Feedback Events . | . . . Feedback Blocked . | . . . Robot Schematics Acquired . | . . . Robots Built . | . . . Authchips . | . . . Time . | . . . Total Robot Build Rating . | . . . Part Schematics Acquired . | . . . Parts Built . | . . . Authchips . | . . . Time . | . . . Total Part Build Rating . | . . . Parts Repaired 1 | . 1 . Time 26 | . 26 . Parts Recycled . | . . . Recycled Matter . | . . . Retrieved Matter . | . . . Retrieved Components 7 | . . 7 Parts Scanalyzed . | . . . Part Schematics Acquired . | . . . Parts Damaged . | . . . Bothacking | -11 -10 -9 ------------ Run | Yrd Mat Mat Used RIF Installer . | . . . Robots Hacked . | . . . Non-combat . | . . . Combat . | . . . Robot Hacks Applied . | . . . Relay Couplers Released . | . . . Fabnet Peak Effective % . | . . . Robots Rewired . | . . . Allies Hacked . | . . . Hacks Repelled . | . . . Allies | -11 -10 -9 -------- Run | Yrd Mat Mat Total Allies 1 | . 1 . Largest Group 1 | . 1 1 Highest-Rated Group 10 | . 10 10 Highest-Rated Ally 10 | . 10 10 Total Orders 2 | . 2 . ROAM 1 | . 1 . FOLLOW 1 | . 1 . Ally Attacks . | . . . Total Damage . | . . . Kills . | . . . Allies Corrupted . | . . . Allies Melted . | . . . Intel | -11 -10 -9 ------- Run | Yrd Mat Mat Robot Analysis Total . | . . . Derelict Logs Recovered . | . . . Drone Launches . | . . . Drone Recoveries . | . . . Exploration | -11 -10 -9 ------------- Run | Yrd Mat Mat Turns Passed 1708 | 52 1322 334 Spaces Moved 965 | 40 672 253 Core 12 | 12 . . Treads . | . . . Legs 700 | 28 672 . Wheels . | . . . Hover 253 | . . 253 Flight . | . . . Fastest Speed 48 | 50 120 48 Average Speed 126 | 105 152 61 Slowest Speed 190 | 120 190 112 Overloaded Moves . | . . . Propulsion Burnouts . | . . . Robots Hopped . | . . . Cave-ins Triggered . | . . . Exploration Rate (%) 40 | 4 93 24 Regions Visited 2 Branch Regions . Pre-discovered Areas 2 | . 2 . Known Exits Taken . | . . . Unknown Exits Taken 2 | 1 1 . Scrap Searched . | . . . Spaces Dug . | . . . Terrain Destroyed . | . . . Melee . | . . . Projectile . | . . . AOE . | . . . Terrain Rammed . | . . . Walls Destroyed . | . . . Machines Disabled . | . . . Actions | -11 -10 -9 --------- Run | Yrd Mat Mat Total 1286 | 47 862 377 Wait 174 | . 101 73 Move 963 | 39 671 253 Hop . | . . . Pick Up 25 | 2 16 7 Fast Attach 7 | 6 1 . Attach 8 | . 3 5 Detach . | . . . Swap 10 | . 5 5 Drop 8 | . 6 2 Fire 81 | . 57 24 Melee 8 | . . 8 Ram . | . . . Kick 2 | . 2 . Crush . | . . . Escape Stasis . | . . . Rewire . | . . . Trap . | . . . Miscellaneous . | . . . Route ------- -11/Scrapyard -10/Materials (discovered 4 exits: *Mat x2 / *Min x2) -9/Materials History --------- Turn | Location | Event 3 | -11/Scrapyard | Discovered new exit (range 15) 53 | -11/Scrapyard | Entered Materials 310 | -10/Materials | Discovered new exit (range 14) 311 | -10/Materials | Build established: Mutant 636 | -10/Materials | Discovered new exit (range 16) 919 | -10/Materials | Discovered new exit (range 15) 970 | -10/Materials | Repaired Lgt. Cannon 1061 | -10/Materials | Identified exit to Mines 1348 | -10/Materials | Discovered new exit (range 9) 1375 | -10/Materials | Entered another Materials area 1375 | -9/Materials | Accompanied by 1 ally 1375 | -9/Materials | Evolved 2 slots: Propulsion x2 1709 | -9/Materials | Self-destructed Last Messages --------------- 01620_ R-06 Scavenger collects Hover Unit. 01623_ K-01 Serf collects debris. 01623_ G-34 Mercenary destroyed. 01623_ R-06 Scavenger collects Heat Sink. 01625_ Imp. Hover Unit destroyed. 01626_ R-06 Scavenger collects Imp. Ion Engine. 01627_ K-01 Serf collects debris. 01629_ Sneak attack on A-02 Transporter. 01630_ K-01 Serf collects debris. 01631_ A-02 Transporter destroyed. 01633_ K-01 Serf collects debris. 01634_ K-01 Serf destroyed. 01640_ Acquired 24 matter. 01659_ Y-45 Defender destroyed. 01662_ K-01 Serf collects debris. 01666_ A-02 Transporter destroyed. 01671_ K-01 Serf collects debris. 01698_ Lgt. Armor Plating destroyed. 01702_ Y-45 Defender destroyed. 01706_ Acquired 54 matter. Map ----- +----------------------------------------------------+ | ??????# * ####?? ???????????? | | ??????# #????? #??????????? | | ??????# #????? #??????????? | | ??????# #????? #??????????? | | ??????# #????# #??????????? | | ?????## ##???# #??????????? | | ?????# ##### #??????????? | | ?????# #??????????? | | ?????# +??????????? | | ?????# """ #??????????? | | ?????# """ #??????????? | | ?????###### """ ###+##?????? | | ?????# ####??? | | ?????# #??? | | ?????# #??? | | ?????# #######+######### #??? | | ?????# ??# #?### ###? | | ?????# ???# #?# #? | | ?????# ????# ### [ #? | | ?????#?????# [ "T" + = #? | | ???????????############# #? | | ???????????????????????# #? | | ??????????????????????####+#### | | ??????????????????????# # | | ??????????????????????# # | | ??????????????????????# @ # | | ??????????????????????# # | | ??????????????????????# # | | ??????????????????????######### | | ??????????????????????????????? | | ??????????????????????????????? | | ??????????????????????????????? | | ??????????????????????????????? | | ??????????????????????????????? | | ??????????????????????????????? | | ??????????????????????????????? | | ??????????????????????????????? | | ??????????????????????????????? | | ??????????????????????????????? | | ??????????????????????????????? | | ??????????????????????????????? | | ??????????????????????????????? | | ??????????????????????????????? | | ??????????????????????????????? | | | | | | | | | | | | | +----------------------------------------------------+ Best States ------------- Heat Dissipation 28 Energy Generation 10 Energy Capacity 125 Matter Stores 292 Matter Capacity 300 Sight Range 16 Robot Scan Range 14 Terrain Scan Density 10 Armor Coverage 150 Evasion (%) 55 Item Schematics ----------------- None Robot Schematics ------------------ None Fabricated ------------ Nothing Alien Tech Used ----------------- None Achievements -------------- None Challenges ------------ None Game ------ Seed ThermicLightDoomcannon Manual? 0 Play Time 00:19:33 Cumulative 17.4 hours Start 2024.06.03 @ 19:38:14 End 2024.06.03 @ 19:59:02 Sessions 1 Manual Loads 0 Difficulty Rogue Special Mode None Game No. 39 Rogue 39 Adventurer 0 Explorer 0 Win Type - Total 0 Types 0/0/0/0/0/0/0/0/0 Lore% 17 Gallery% 20 Achievement% 16 Wizard Run 0 Options --------- Layout 0 ASCII 0 Keyboard 0 Movement Mouse Keybinds 0 Fullscreen 2 Font 18/Terminus Map View 76x50 Zoom Use 0% Tactical HUD 1 Map Filters NONE Filters NONE Steam 1 RUN: 9e04718f-568e-45f3-8165-54a2299b5fa0